Cogmind - Beta 14 @@@ ROGUE MODE // 2025.05.04 @ 00:17:11 Player: Quartz Result: Destroyed self with Mini Grenade Launcher Performance ------------- Evolutions (0) 0 Regions Visited (2) 400 Robots Destroyed (18) 90 Value Destroyed (372) 372 Prototype IDs (2) 40 Alien Tech Used (0) 0 Bonus (0) 0 TOTAL SCORE: 902 Bonus ------- None Cogmind --------- Core Integrity 0/250 Matter 255/400 Energy 265/265 System Corruption 0% Temperature Cool (0) Movement Walking (680) Ox8 Location -10/Mines Parts ------- > --- POWER (1) -------- Improved Ion Engine > --- PROPULSION (2) --- Aluminum Leg > --- UTILITY (2) ------ Huge Storage Unit Medium Matter Pod > --- WEAPON (2) ------- Mini Grenade Launcher > --- INVENTORY (25) --- Improved Ion Engine Improved Ion Engine Propulsion Shielding Utility Shielding Light Armor Plating Tractor Beam Beam Cannon Beam Cannon Light Cannon Mini Grenade Launcher Peak State ------------ > --- POWER ------------ Improved Ion Engine > --- PROPULSION ------- Aluminum Leg Aluminum Leg > --- UTILITY ---------- Huge Storage Unit Medium Matter Pod > --- WEAPON ----------- Mini Grenade Launcher Mini Grenade Launcher > --- INVENTORY -------- Improved Ion Engine Improved Ion Engine Propulsion Shielding Utility Shielding Light Armor Plating Tractor Beam Beam Cannon Beam Cannon Light Cannon Light Cannon Light Cannon [Rating: 11] Favorites ----------- Power Improved Ion Engine Engine Improved Ion Engine Propulsion Aluminum Leg Leg Aluminum Leg Utility Medium Matter Pod Storage Medium Matter Pod Processor Targeting Computer Weapon Light Cannon Energy Gun Small Laser Ballistic Gun Assault Rifle Ballistic Cannon Light Cannon Launcher Mini Grenade Launcher Build | -11 -10 -10 ------- Run | Yrd Mat Min Slots Evolved . | . . . Power . | . . . Propulsion . | . . . Utility . | . . . Weapon . | . . . Parts Attached 34 | 7 21 6 Power 4 | 1 3 . Engine 4 | 1 3 . Core . | . . . Reactor . | . . . Propulsion 5 | 2 3 . Treads . | . . . Leg 5 | 2 3 . Wheel . | . . . Hover . | . . . Flight . | . . . Utility 6 | 1 4 1 Device . | . . . Storage 4 | 1 2 1 Processor 2 | . 2 . Hackware . | . . . Protection . | . . . Artifact . | . . . Weapon 19 | 3 11 5 Energy Gun 1 | 1 . . Energy Cannon . | . . . Ballistic Gun 4 | 2 2 . Ballistic Cannon 7 | . 5 2 Launcher 7 | . 4 3 Special Weapon . | . . . Impact Weapon . | . . . Slashing Weapon . | . . . Piercing Weapon . | . . . Special Melee Weapon . | . . . Unidentified Prototypes . | . . . Parts Lost 3 | . . 3 Power . | . . . Propulsion 1 | . . 1 Utility . | . . . Weapon 2 | . . 2 Highest Loss Streak 3 | . . 3 To Critical Strikes . | . . . Average Slot Usage (%) 99 | . 98 99 Engine 13 | . 13 14 Leg 27 | . 27 27 Storage 24 | . 22 28 Processor 2 | . 5 . Ballistic Gun 3 | . 7 . Ballistic Cannon 23 | . 20 27 Peak Build Rating 11 | 6 10 11 Average Rating 8 | 4 8 9 On Entrance 5 | . 6 9 Naked Turns . | . . . Heaviest Build 95 | 13 25 95 Greatest Support 20 | 20 20 20 Greatest Overweight (x) 9 | 1 7 9 Average Overweight (x) 1 | . . 3 Largest Inventory Capacity 25 | 8 10 25 Average Capacity 15 | 7 9 23 Most Carried 11 | 6 10 11 Average Carried 9 | 2 8 10 Final Capacity 25 | 8 10 25 Final Carried 10 | 2 10 10 Class Distribution -------------------- 100% | Mutant Dominant Class ---------------- Mutant | -10/Materials Mutant | -10/Mines Resources | -11 -10 -10 ----------- Run | Yrd Mat Min Matter Collected 709 | 251 368 90 Remotely . | . . . Salvage Created 312 | . 312 . Parts 30 | . 30 . Haulers Intercepted 1 | . 1 . Recyclers Shooed . | . . . Parts Field Recycled . | . . . Retrieved Matter . | . . . Parts Self-Destructed . | . . . Prevented . | . . . Kills | -11 -10 -10 ------- Run | Yrd Mat Min Combat Hostiles Destroyed 12 | . 11 1 Guns 2 | . 2 . Cannons 3 | . 2 1 AOE 7 | . 7 . Classes Destroyed 8 | . 7 1 Worker 1 | . 1 . Builder 1 | . 1 . Hauler 1 | . 1 . Operator 1 | . 1 . Watcher 2 | . 2 . Swarmer 6 | . 6 . Grunt 5 | . 5 . Demolisher 1 | . . 1 Best Kill Streak 5 | . 5 1 Combat Bots Only 5 | . 5 1 Max Kills in Single Turn 4 | . 4 1 Gunslinging . | . . . Exploded 4 | . 4 . Melee . | . . . Uniques/NPCs Destroyed . | . . . Combat | -11 -10 -10 -------- Run | Yrd Mat Min Hostile Shots Fired 66 | . 30 36 Missed 12 | . 7 5 Damage Taken 897 | . 213 684 Core 258 | . 37 221 Absorbed by Shields . | . . . Core Remaining (%) 100 | 100 . . Volleys Fired 28 | . 23 5 Largest 2 | . 2 2 Hottest 70 | . 70 70 Shots Fired 53 | . 44 9 Gun 11 | . 11 . Cannon 34 | . 28 6 Launcher 8 | . 5 3 Special . | . . . Kinetic 45 | . 39 6 Thermal . | . . . Explosive 8 | . 5 3 Electromagnetic . | . . . Robot Hit Streak 5 | . 5 5 Robot Miss Streak 7 | . 7 1 Penetration Max . | . . . Secondary Targets . | . . . Shots Hit Robots 22 | . 16 6 Core Hits 22 | . 18 4 Critical Kills 1 | . 1 . Critical Parts Destroyed . | . . . Critical Strikes 2 | . 2 . Destroy 1 | . 1 . Blast 1 | . 1 . Melee Attacks . | . . . Impact . | . . . Slashing . | . . . Piercing . | . . . Sneak Attacks . | . . . Combat Hostiles . | . . . Follow-up Attacks . | . . . Damage Inflicted 891 | . 701 190 Guns 38 | . 38 . Cannons 324 | . 238 86 Explosions 526 | . 422 104 Melee . | . . . Ramming 3 | . 3 . Kinetic 362 | . 276 86 Thermal . | . . . Explosive 526 | . 422 104 Electromagnetic . | . . . Impact . | . . . Slashing . | . . . Piercing . | . . . Highest Corruption . | . . . Average Corruption . | . . . Corruption Purged . | . . . Corruption Blocked . | . . . Overload Shots . | . . . Overflow Damage 5 | . 5 . Projectiles . | . . . Explosions 5 | . 5 . Melee . | . . . Knockbacks 3 | . 1 2 Impact . | . . . Kinetic 3 | . 1 2 Secondary . | . . . Self-Inflicted Damage 88 | . . 88 Shots 3 | . . 3 Rammed . | . . . Targets Rammed 2 | . 2 . Kicked 2 | . 2 . Crushed . | . . . Highest Temperature 90 | . 90 41 Average Temperature 18 | . 19 14 Received Heat Transfer 156 | . 36 120 Siege Activations . | . . . Robots Corrupted . | . . . Combat Hostiles . | . . . Parts Fried . | . . . Impact Corruptions . | . . . Robots Melted . | . . . Combat Hostiles . | . . . Parts Melted . | . . . Heat Transferred . | . . . Parts Sabotaged . | . . . Parts Stolen . | . . . Parts Stripped . | . . . Power Chain Reactions . | . . . Alert | -11 -10 -10 ------- Run | Yrd Mat Min Peak Influence 254 | . 254 63 Initial . | . . . Average 75 | . 137 4 Maximum Alert Level 1 | . 1 . Low Security (%) 91 | 100 84 100 Level 1 8 | . 15 . Level 2 . | . . . Level 3 . | . . . Level 4 . | . . . Level 5 . | . . . High Security . | . . . Max Security . | . . . Squads Dispatched 4 | . 4 . Investigation 2 | . 2 . Extermination . | . . . Reinforcement 2 | . 2 . Assault . | . . . Garrison . | . . . Intercept . | . . . Searches Triggered . | . . . Construction Impeded . | . . . Haulers Reinforced . | . . . Active Scanning Responses . | . . . Cargo Convoy Interrupts . | . . . Stealth | -11 -10 -10 --------- Run | Yrd Mat Min Distress Signals 1 | . 1 . Communications Jammed . | . . . Distress Signals . | . . . Times Spotted 26 | . 19 7 Peak Tracking Total 10 | . 5 10 Tactical Retreats 2 | . . 2 Traps | -11 -10 -10 ------- Run | Yrd Mat Min Traps Triggered 4 | . 4 . Indirectly . | . . . Trap Hack Attempts . | . . . Triggered . | . . . Disarmed . | . . . Reprogrammed . | . . . Reused . | . . . Traps Extracted . | . . . Installed . | . . . Triggered . | . . . Machines | -11 -10 -10 ---------- Run | Yrd Mat Min Machines Disabled 2 | . 2 . Max in Single Turn 1 | . 1 . Machines Repaired . | . . . Machines Dismantled . | . . . Machines Sabotaged . | . . . Overloaded Fab Kills . | . . . Hacking | -11 -10 -10 --------- Run | Yrd Mat Min Machines Accessed 5 | . 5 . Terminals 4 | . 4 . Fabricators . | . . . Repair Stations . | . . . Recycling Units 1 | . 1 . Scanalyzers . | . . . Garrison Access . | . . . Total Hacks 11 | . 11 . Successful 8 | . 8 . Failed 3 | . 3 . Catastrophic . | . . . Database Lockouts . | . . . Manual 9 | . 9 . Terminals 10 | . 10 . Fabricators . | . . . Repair Stations . | . . . Recycling Units 1 | . 1 . Scanalyzers . | . . . Garrison Access . | . . . Terminal Hacks 7 | . 7 . Robot Analysis 3 | . 3 . Prototype ID Bank 1 | . 1 . Terminal Index 1 | . 1 . Scanalyzer Index 1 | . 1 . Recall Investigation 1 | . 1 . Fabricator Hacks . | . . . Repair Station Hacks . | . . . Recycling Unit Hacks 1 | . 1 . Retrieve Components 1 | . 1 . Scanalyzer . | . . . Garrison Access Hacks . | . . . Unauthorized Hacks . | . . . Terminals . | . . . Fabricators . | . . . Repair Stations . | . . . Recycling Units . | . . . Scanalyzers . | . . . Garrison Access . | . . . Data Cores Recovered 1 | . 1 . Used . | . . . Hacking Detections 3 | . 3 . Full Trace Events . | . . . Feedback Events . | . . . Feedback Blocked . | . . . Robot Schematics Acquired . | . . . Robots Built . | . . . Authchips . | . . . Time . | . . . Total Robot Build Rating . | . . . Part Schematics Acquired . | . . . Parts Built . | . . . Authchips . | . . . Time . | . . . Total Part Build Rating . | . . . Parts Repaired . | . . . Time . | . . . Parts Recycled . | . . . Recycled Matter . | . . . Retrieved Matter . | . . . Retrieved Components 9 | . 9 . Parts Scanalyzed . | . . . Part Schematics Acquired . | . . . Parts Damaged . | . . . Bothacking | -11 -10 -10 ------------ Run | Yrd Mat Min Used RIF Installer . | . . . Robots Hacked . | . . . Non-combat . | . . . Combat . | . . . Robot Hacks Applied . | . . . Relay Couplers Released . | . . . Fabnet Peak Effective % . | . . . Robots Rewired . | . . . Allies Hacked . | . . . Hacks Repelled . | . . . Allies | -11 -10 -10 -------- Run | Yrd Mat Min Total Allies . | . . . Largest Group . | . . . Highest-Rated Group . | . . . Highest-Rated Ally . | . . . Total Orders . | . . . Ally Attacks . | . . . Total Damage . | . . . Kills . | . . . Allies Corrupted . | . . . Allies Melted . | . . . Intel | -11 -10 -10 ------- Run | Yrd Mat Min Robot Analysis Total 3 | . 3 . Derelict Logs Recovered 1 | . . 1 Drone Launches . | . . . Drone Recoveries . | . . . Exploration | -11 -10 -10 ------------- Run | Yrd Mat Min Turns Passed 2258 | 57 1215 986 Spaces Moved 961 | 44 661 256 Core 24 | 19 5 . Treads . | . . . Legs 937 | 25 656 256 Wheels . | . . . Hover . | . . . Flight . | . . . Fastest Speed 50 | 50 120 190 Average Speed 213 | 90 158 374 Slowest Speed 750 | 120 400 750 Overloaded Moves . | . . . Propulsion Burnouts . | . . . Robots Hopped . | . . . Cave-ins Triggered . | . . . Exploration Rate (%) 41 | 4 73 48 Regions Visited 2 Branch Regions 1 Pre-discovered Areas 1 | . . 1 Known Exits Taken . | . . . Unknown Exits Taken 2 | 1 1 . Scrap Searched 1 | . . 1 Spaces Dug . | . . . Terrain Destroyed 81 | . 54 27 Melee . | . . . Projectile . | . . . AOE 81 | . 54 27 Terrain Rammed . | . . . Walls Destroyed . | . . . Machines Disabled . | . . . Actions | -11 -10 -10 --------- Run | Yrd Mat Min Total 1116 | 60 781 275 Wait 53 | 3 44 6 Move 959 | 43 660 256 Hop . | . . . Pick Up 29 | 7 21 1 Fast Attach 4 | 1 3 . Attach 9 | 5 3 1 Detach . | . . . Swap 21 | 1 15 5 Drop 11 | . 10 1 Fire 28 | . 23 5 Melee . | . . . Ram . | . . . Kick 2 | . 2 . Crush . | . . . Escape Stasis . | . . . Rewire . | . . . Trap . | . . . Miscellaneous . | . . . Route ------- -11/Scrapyard -10/Materials (discovered 2 exits: [*Mat] / [*Min]) -10/Mines (discovered 2 exits: [*Mat x2]) History --------- Turn | Location | Event 5 | -11/Scrapyard | Discovered new exit (range 14) 58 | -11/Scrapyard | Entered Materials 300 | -10/Materials | Build established: Mutant 504 | -10/Materials | Discovered new exit (range 7) 779 | -10/Materials | Discovered new exit (range 11) 1273 | -10/Materials | Entered Mines 1470 | -10/Mines | Discovered new exit (range 10) 1930 | -10/Mines | Discovered new exit (range 13) 2118 | -10/Mines | Learned location of Zion (-7) 2155 | -10/Mines | Assembled infested the area 2160 | -10/Mines | Assisted by a Guerilla fighting off Assembled 2177 | -10/Mines | Core integrity fell below 50% 2246 | -10/Mines | Core integrity fell below 20% 2259 | -10/Mines | Destroyed self with Mini Grenade Launcher Last Messages --------------- 02195_ The unstable cave ceiling collapses. 02198_ K-01 Serf collects debris. 02199_ The unstable cave ceiling collapses. 02202_ K-01 Serf collects debris. 02205_ The unstable cave ceiling collapses. 02205_ K-01 Serf collects debris. 02209_ The unstable cave ceiling collapses. 02209_ K-01 Serf collects debris. 02214_ The unstable cave ceiling collapses. 02214_ R-06 Scavenger collects Wheel. 02216_ The unstable cave ceiling collapses. 02216_ K-01 Serf collects debris. 02223_ Lgt. Cannon destroyed. 02227_ The unstable cave ceiling collapses. 02233_ R-06 Scavenger destroyed. 02233_ Acquired 55 matter. 02237_ Aluminum Leg destroyed. 02239_ The unstable cave ceiling collapses. 02239_ Critical hit (Burn: +80). 02250_ Lgt. Cannon destroyed. Map ----- +----------------------------------------------------+ | | | | | | | | | | | | | | | | | | | | | | | | | | | | | | | | | | | | | | | | | ???????????????????????????????????????????????? | | ??????????????????????????############?????????? | | ??????????????????????????# ##????????? | | ??????????????????????????# ####?????? | | ??????????????????????##### ### #### ## ##????? | | ??????????????????????#a @ #?# #?## #????? | | ?????????????????#### # #####?# ### #????? | | ????????????????## *!##????# < #????? | | ????????##?????### # ##???###### #????? | | ????????# ## # # #????????## #????? | | ???????# ### #?????????## ##???? | | ?? % % ####???????# ##??? | | ?? % !%* # # ##??????# #??? | | ?????## ### # ## #??????## #??? | | ??????## ?### # ## ##?####?### #??? | | ???????#??? ???### ### ##??## #??? | | ?????????????????###### ##??# #??? | | ???????????????????????# ##?# #??? | | ???????????????????????# ### #??? | | ???????????????????????## #??? | | ????????????????????????## #??? | | ???????????????????##????## ## ## #######??? | | ???????????????????# ????# ##########????????? | | ???????????????????# ???# #?????????????????? | | ???????????????????# #??# #?????????????????? | | ?????????????????### ### #?####????????????? | | ?????????????????# ### ##?###???????? | | ???????????????????# ## ##??????? | | ???????????????????## """ #??????? | | ???????????????????## """ #??????? | +----------------------------------------------------+ Best States ------------- Heat Dissipation 25 Energy Generation 12 Energy Capacity 265 Matter Stores 298 Matter Capacity 400 Sight Range 18 Terrain Scan Density 10 Evasion (%) 55 Targeting Accuracy 5 Item Schematics ----------------- None Robot Schematics ------------------ None Fabricated ------------ Nothing Alien Tech Used ----------------- None Achievements -------------- None Challenges ------------ None Game ------ Seed ShadeHypercooledLauncher Manual? 0 Play Time 00:15:15 Cumulative 17.6 hours Start 2025.05.03 @ 23:56:11 End 2025.05.04 @ 00:17:11 Sessions 1 Manual Loads 0 Difficulty Rogue Special Mode None Game No. 30 Rogue 30 Adventurer 0 Explorer 0 Win Type - Total 0 Types 0/0/0/0/0/0/0/0/0 Lore% 8 Gallery% 18 Achievement% 16 Wizard Run 0 Options --------- Layout 0 ASCII 0 Keyboard 0 Movement Arrows Keybinds 0 Fullscreen 1 Font 18/SmallcapsGlow Map View 76x50 Zoom Use 0% Tactical HUD 1 Map Filters NONE Filters NONE Steam 1 RUN: 5e0429b5-89fb-406b-877b-d4ef92556777